fUSD/lending_fUSD_20251214
["ID","MTS","AMOUNT","RATE_DAILY","PERIOD"]
[398466626,1765689032794,-535.69184163,0.00016373,2]
[398466627,1765689032804,-500.0,0.00016373,2]
[398466628,1765689032815,-578.46,0.00016419,2]
[398466629,1765689032826,-1111.0,0.00016424,2]
[398466630,1765689032836,-500.0,0.00016437,2]
[398466631,1765689032845,-510.82677373,0.00016437,2]
[398466632,1765689032855,-256.95977142,0.00016438,2]
[398466633,1765689032864,-2200.21192544,0.00016454,2]
[398466634,1765689032873,-1111.0,0.00016479,2]
[398466635,1765689032882,-1633.80377519,0.00016498,2]
[398466636,1765689032891,-298.0,0.00016498,2]
[398466637,1765689032900,-170.41,0.000165,2]
[398466638,1765689032910,-480.62,0.000165,2]
[398466639,1765689032924,-480.62,0.000165,2]
[398466640,1765689032933,-569.0,0.00016525,2]
[398466641,1765689032942,-619.5860995,0.00016534,2]
[398466642,1765689032989,-314.58304838,0.00016534,2]
[398466644,1765689039696,-176.83085212,0.00016534,2]
[398466645,1765689039705,-1111.0,0.00016589,2]
[398466646,1765689039715,-170.41,0.000166,2]
[398466647,1765689039725,-170.41,0.000166,2]
[398466649,1765689039734,-480.62,0.000166,2]
[398466651,1765689039743,-170.41,0.000166,2]
[398466653,1765689039752,-1229.55,0.000166,2]
[398466655,1765689039761,-480.62,0.000166,2]
[398466657,1765689039771,-170.41,0.000166,2]
[398466659,1765689039780,-170.41,0.000166,2]
[398466661,1765689039789,-488.11,0.000166,2]
[398466663,1765689039800,-170.41,0.000166,2]
[398466665,1765689039809,-480.62,0.000166,2]
[398466667,1765689039818,-480.62,0.000166,2]
[398466669,1765689039827,-2200.21192544,0.00016635,2]
[398466671,1765689039838,-1111.0,0.00016644,2]
[398466673,1765689039847,-501.6278617,0.0001666,2]
[398466676,1765689039856,-1422.8577037,0.0001669,2]
[398466678,1765689039865,-578.46,0.00016693,2]
[398466679,1765689039875,-154.82,0.00016698,2]
[398466682,1765689039884,-170.41,0.000167,2]
[398466683,1765689039894,-200.0,0.00016712,2]
[398466684,1765689039903,-150.0,0.00016712,2]
[398466685,1765689039912,-150.0,0.00016712,2]
[398466687,1765689039926,-200.0,0.00016712,2]
[398466689,1765689039937,-1223.0,0.00016712,2]
[398466691,1765689039946,-150.0,0.00016712,2]
[398466693,1765689039956,-192.083485,0.00016712,2]
[398466694,1765689039966,-150.0,0.00016712,2]
[398466695,1765689039976,-150.0,0.00016712,2]
[398466696,1765689039985,-500.0,0.00016712,2]
[398466697,1765689039996,-500.0,0.00016712,2]
[398466698,1765689040006,-238.16065675,0.00016712,2]
[398466699,1765689040015,-150.0,0.00016712,2]
[398466700,1765689040025,-200.0,0.00016712,2]
[398466701,1765689040034,-150.0,0.00016712,2]
[398466702,1765689040043,-500.0,0.00016712,2]
[398466703,1765689040052,-1009.0,0.000168,2]
[398466704,1765689040062,-595.37131296,0.00016807,2]
[398466705,1765689040071,-152.62956156,0.00016807,2]
[398466706,1765689040080,-168.0,0.00016809,2]
[398466707,1765689040090,-2200.21192544,0.00016815,2]
[398466708,1765689040100,-154.36880722,0.00016827,2]
[398466709,1765689040110,-5942.58392,0.0001683,2]
[398466710,1765689040119,-150.0,0.00016849,2]
[398466711,1765689040128,-150.0,0.00016849,2]
[398466712,1765689040138,-1223.0,0.00016849,2]
[398466713,1765689040147,-150.0,0.00016849,2]
[398466714,1765689040156,-207.32829514,0.00016849,2]
[398466715,1765689040166,-500.0,0.00016849,2]
[398466716,1765689040175,-500.0,0.00016849,2]
[398466717,1765689040184,-500.0,0.00016849,2]
[398466718,1765689040193,-200.0,0.00016864,2]
[398466719,1765689040202,-169.26637833,0.000169,2]
[398466720,1765689040211,-178.21,0.000169,2]
[398466721,1765689040220,-178.21,0.000169,2]
[398466722,1765689040230,-1134.40937895,0.000169,2]
[398466723,1765689040239,-156.32703025,0.000169,2]
[398466724,1765689040248,-181.55590847,0.000169,2]
[398466725,1765689040257,-2000.0,0.000169,2]
[398466726,1765689040266,-2000.0,0.000169,2]
[398466727,1765689040275,-2375.0,0.000169,3]
[398466728,1765689040285,-1000.0,0.000169,2]
[398466729,1765689040293,-543.65,0.0001692,2]
[398466730,1765689040302,-505.23733551,0.00016921,2]
[398466731,1765689040311,-1000.0,0.00016921,2]
[398466732,1765689040320,-1000.0,0.00016921,2]
[398466733,1765689040329,-503.70828138,0.00016921,2]
[398466734,1765689040338,-502.18808217,0.00016921,2]
[398466735,1765689040347,-1000.0,0.00016921,2]
[398466736,1765689040357,-1007.25603908,0.00016921,2]
[398466737,1765689040366,-1000.0,0.00016921,2]
[398466738,1765689040375,-1002.01793205,0.00016921,2]
[398466739,1765689040385,-1000.0,0.00016921,2]
[398466740,1765689040395,-1001.36910936,0.00016921,2]
[398466741,1765689040404,-1005.45045816,0.00016921,2]
[398466742,1765689040414,-1000.0,0.00016921,2]
[398466743,1765689040423,-1000.0,0.00016921,2]
[398466744,1765689040432,-177.08742961,0.00016921,2]
[398466745,1765689040441,-299.7668433,0.00016921,2]
[398466746,1765689040451,-1002.08303859,0.00016921,2]
[398466747,1765689040460,-500.0,0.00016921,2]
[398466748,1765689040469,-500.0,0.00016921,2]
[398466749,1765689040478,-500.0,0.00016921,2]
[398466750,1765689040487,-500.0,0.00016921,2]
[398466751,1765689040498,-500.0,0.00016921,2]
[398466752,1765689040508,-500.0,0.00016921,2]
[398466753,1765689040518,-500.0,0.00016921,2]
[398466754,1765689040528,-500.0,0.00016921,2]
[398466755,1765689040538,-500.0,0.00016921,2]
[398466756,1765689040549,-500.0,0.00016921,2]
[398466757,1765689040560,-500.0,0.00016921,2]
[398466758,1765689040570,-168.0,0.0001693,2]
[398466759,1765689040586,-578.46,0.00016967,2]
[398466760,1765689040595,-481.15230225,0.00016969,2]
[398466761,1765689040605,-262.5829293,0.00016973,2]
[398466762,1765689040614,-354.38503337,0.00016973,2]
[398466763,1765689040623,-500.0,0.00016973,2]
[398466764,1765689040633,-500.0,0.00016973,2]
[398466765,1765689040643,-500.0,0.00016973,2]
[398466766,1765689040652,-500.0,0.00016973,2]
[398466767,1765689040661,-250.0,0.00016986,2]
[398466768,1765689040670,-1223.0,0.00016986,2]
[398466769,1765689040680,-223.01620776,0.00016986,2]
[398466770,1765689040689,-436.29411008,0.00016986,2]
[398466771,1765689040700,-500.0,0.00016986,2]
[398466772,1765689040710,-594.05868298,0.00016986,2]
[398466773,1765689040719,-196.93257166,0.0001699,2]
[398466774,1765689040728,-2200.21192544,0.00016996,2]
[398466775,1765689040737,-375.0502434,0.00016999,2]
[398466776,1765689040745,-3549.5645413,0.00016999,2]
[398466777,1765689040755,-17352.3655422,0.00016999,2]
[398466778,1765689040764,-300.0,0.00016999,2]
[398466779,1765689040774,-500.0,0.00016999,2]
[398466780,1765689040783,-500.0,0.00016999,2]
[398466781,1765689040792,-500.0,0.00016999,2]
[398466782,1765689040801,-300.0,0.00016999,2]
[398466783,1765689040811,-1194.9779435,0.00016999,2]
[398466784,1765689040820,-300.0,0.00016999,2]
[398466785,1765689040830,-3119.4698438,0.00016999,2]
[398466786,1765689040839,-300.0,0.00016999,2]
[398466787,1765689040848,-666.0,0.00016999,2]
[398466788,1765689040858,-666.0,0.00016999,2]
[398466789,1765689040867,-2157.0,0.00017,2]
[398466790,1765689040876,-120929.75064652,0.00017,2]
[398466791,1765689040898,-7532.81341351,0.00017,2]
[398466792,1765689041889,-705.0,0.00016847,2]
[398466793,1765689041900,-9373.75992589,0.00017,2]
[398466794,1765689041911,-97431.7542494,0.00017,2]
[398466795,1765689041945,-2022.64529575,0.00017,2]
[398466796,1765689042002,-25940.974272,0.00017,2]
[398466797,1765689042012,-290.65933611,0.00017,2]
[398466798,1765689042024,-607.11128601,0.00017,2]
[398466799,1765689042057,-325.929999,0.00017,2]
[398466800,1765689042113,-210438.06942141,0.00017,2]
[398466801,1765689042275,-500.0,0.00017,2]
[398466817,1765689042827,-883.59956996,0.00017,2]
[398466818,1765689042838,-1052.29421122,0.00017,2]
[398466819,1765689042882,-20767.58131457,0.00017,2]
[398466820,1765689042895,-628.28861067,0.00017,2]
[398466821,1765689042938,-2469.02239873,0.00017,2]
[398466823,1765689045876,-480.62,0.000165,2]
[398466824,1765689045886,-3770.91656491,0.00017,2]
[398466825,1765689045948,-479.27852074,0.00017,2]
[398466826,1765689045977,-759.48108643,0.00017,2]
[398466827,1765689046009,-791.94852291,0.00017,2]
[398466829,1765689052452,0.02,0.000132,5]
[398466830,1765689052473,5524.98,0.000132,5]
[398466831,1765689052537,4475.0,0.000129,3]
[398466833,1765689112494,0.03,0.00015772,2]
[398466834,1765689112518,10000.01,0.00015772,2]
[398466835,1765689112542,10000.01,0.00015772,2]
[398466836,1765689112566,10000.01,0.00015772,2]
[398466837,1765689112589,10000.01,0.00015772,2]
[398466839,1765689136645,548.0,0.000225,120]
[398466840,1765689237811,312.65,0.00022,30]
[398466841,1765689480266,-4457.46945949,0.00015736,2]
[398466842,1765689547881,1085.07108102,7.945e-05,2]
[398466843,1765689547907,1874.71289198,7.945e-05,2]
[398466844,1765689698343,5472.88,0.00015689,2]
[398466845,1765689793861,2000.0,0.00015734,2]
[398466846,1765689843786,1189.81,0.00015675,2]
[398466847,1765689869381,500.0,0.00022,30]
[398466848,1765689909871,1000.0,0.00015734,2]
[398466849,1765689936917,337.32,0.00015672,2]
[398466850,1765689936941,662.68,0.00015672,2]
[398466851,1765689987569,2039.00644164,0.00015,2]
[398466852,1765690014538,-4011.72251355,0.00015736,2]
[398466853,1765690026473,1976.5649729,0.00015,2]
[398466854,1765690026496,162.18952054,0.00015,2]
[398466858,1765690038716,161.18,0.00015307,2]
[398466859,1765690046163,446.729012,0.00015675,2]
[398466862,1765690084943,166.66,0.00014557,2]
[398466863,1765690085166,166.66,0.00014864,2]
[398466864,1765690085359,166.66,0.0001517,2]
[398466865,1765690085558,166.66,0.00015477,2]
[398466866,1765690115892,8563.27146746,0.00015672,2]
[398466867,1765690115919,3577.12843254,0.00015672,2]
[398466868,1765690185353,186.87974473,0.00015324,2]
[398466869,1765690207595,1479.24,0.00015285,2]
[398466879,1765690231886,-282.0,0.00015754,2]
[398466880,1765690231896,-500.0,0.00015771,2]
[398466881,1765690231906,-500.0,0.00015771,2]
[398466882,1765690231916,-500.0,0.00015771,2]
[398466883,1765690231927,-500.0,0.00015771,2]
[398466884,1765690231937,-500.0,0.00015771,2]
[398466885,1765690231946,-500.0,0.00015771,2]
[398466886,1765690231957,-500.0,0.00015771,2]
[398466887,1765690231966,-500.0,0.00015771,2]
[398466888,1765690231975,-500.0,0.00015771,2]
[398466889,1765690231984,-500.0,0.00015771,2]
[398466890,1765690231994,-500.0,0.00015771,2]
[398466891,1765690232003,-500.0,0.00015771,2]
[398466892,1765690232012,-607.88078942,0.00015771,2]
[398466893,1765690232022,-500.0,0.00015771,2]
[398466894,1765690232032,-393.64087194,0.00015771,2]
[398466895,1765690232043,-166.66,0.00015783,2]
[398466896,1765690232052,-274.19,0.00015836,2]
[398466897,1765690232063,-250.0,0.00015932,2]
[398466898,1765690232072,-169.26637833,0.0001595,2]
[398466899,1765690232081,-4011.7225135,0.00015976,2]
[398466900,1765690232090,-151.0,0.00015997,2]
[398466901,1765690232099,-11128.16230279,0.00016,4]
[398466902,1765690232110,-16291.49705775,0.00016,4]
[398466904,1765690232121,-1034.72426543,0.00016,4]
[398466906,1765690232132,-1212.28801392,0.00016,4]
[398466907,1765690232143,-1961.78531538,0.00016,4]
[398466908,1765690232154,-871.0,0.00016,4]
[398466909,1765690232166,-832.33893487,0.00016,4]
[398466911,1765690232178,-1196.86375132,0.00016,4]
[398466917,1765690235221,589.3,0.0001532,2]
[398466918,1765690238330,-13965.44379314,0.00016,4]
[398466919,1765690238347,-78916.53728599,0.00016,4]
[398466920,1765690238356,-150.0,0.0001605,2]
[398466921,1765690238366,-166.66,0.0001609,2]
[398466922,1765690238376,-300.0,0.00016149,2]
[398466923,1765690238385,-176.83085212,0.00016149,2]
[398466924,1765690238396,-574.12855637,0.00016149,2]
[398466925,1765690238406,-151.0,0.00016149,2]
[398466926,1765690238415,-152.62956156,0.00016149,2]
[398466927,1765690238425,-154.36880722,0.00016197,2]
[398466928,1765690238435,-425.51655259,0.00016199,2]
[398466929,1765690238444,-208.14499043,0.00016199,2]
[398466930,1765690238456,-208.4507346,0.00016199,2]
[398466931,1765690238465,-150.0,0.000162,2]
[398466932,1765690238475,-150.0,0.000162,2]
[398466933,1765690238485,-150.0,0.000162,2]
[398466934,1765690238495,-150.0,0.000162,2]
[398466935,1765690238505,-150.0,0.000162,2]
[398466936,1765690238515,-173233.32836662,0.000162,5]
[398466937,1765690238525,-150.0,0.000162,2]
[398466938,1765690238534,-480.62,0.000162,2]
[398466939,1765690238544,-961.24,0.000162,2]
[398466940,1765690238553,-150.0,0.000162,2]
[398466941,1765690238563,-4011.7225135,0.00016217,2]
[398466942,1765690238572,-204.84432879,0.00016232,2]
[398466943,1765690238582,-161.18,0.00016264,2]
[398466944,1765690238591,-697.0,0.00016291,2]
[398466945,1765690238601,-500.0,0.00016372,2]
[398466946,1765690238610,-505.23733551,0.00016373,2]
[398466947,1765690238619,-503.70828138,0.00016373,2]
[398466948,1765690238628,-500.0,0.00016373,2]
[398466949,1765690238637,-502.18808217,0.00016373,2]
[398466950,1765690238647,-500.0,0.00016373,2]
[398466951,1765690238657,-500.0,0.00016373,2]
[398466952,1765690238666,-500.0,0.00016373,2]
[398466953,1765690238675,-500.0,0.00016373,2]
[398466954,1765690238684,-500.0,0.00016373,2]
[398466955,1765690238694,-501.65541213,0.00016373,2]
[398466956,1765690238703,-299.7668433,0.00016373,2]
[398466957,1765690238713,-500.0,0.00016373,2]
[398466958,1765690238721,-500.0,0.00016373,2]
[398466959,1765690238730,-500.0,0.00016373,2]
[398466960,1765690238739,-500.0,0.00016373,2]
[398466961,1765690238748,-500.0,0.00016373,2]
[398466962,1765690238757,-500.0,0.00016373,2]
[398466963,1765690238766,-500.0,0.00016373,2]
[398466964,1765690238775,-2007.62455938,0.000164,2]
[398466965,1765690238785,-480.62,0.000164,2]
[398466966,1765690238794,-27721.0100034,0.000164,2]
[398466967,1765690238803,-490.0,0.00016417,2]
[398466968,1765690238812,-500.0,0.00016438,2]
[398466969,1765690238822,-500.0,0.00016438,2]
[398466970,1765690238831,-500.0,0.00016438,2]
[398466971,1765690238841,-202.67530277,0.00016438,2]
[398466972,1765690238851,-6764.88,0.00016438,2]
[398466973,1765690238860,-464.03,0.00016438,2]
[398466974,1765690238870,-464.03,0.00016438,2]
[398466975,1765690238879,-464.03,0.00016438,2]
[398466976,1765690238888,-896.44,0.00016438,2]
[398466977,1765690238898,-583.82403474,0.00016447,2]
[398466978,1765690238907,-4011.7225135,0.00016457,2]
[398466979,1765690238916,-230.16,0.00016464,2]
[398466980,1765690238926,-2000.0,0.000165,2]
[398466981,1765690238936,-2000.0,0.000165,3]
[398466982,1765690238945,-2375.0,0.000165,2]
[398466983,1765690238955,-464.03,0.000165,2]
[398466984,1765690238964,-464.03,0.000165,2]
[398466985,1765690238974,-464.03,0.000165,2]
[398466986,1765690238983,-156.684028,0.000165,2]
[398466987,1765690238992,-699.970751,0.000165,2]
[398466988,1765690239002,-699.970751,0.000165,2]
[398466989,1765690239011,-699.970751,0.000165,2]
[398466990,1765690239020,-153.204443,0.000165,2]
[398466991,1765690239030,-151.0,0.000165,2]
[398466992,1765690239039,-699.970751,0.000165,2]
[398466993,1765690239048,-151.0,0.000165,2]
[398466994,1765690239057,-155.557899,0.000165,2]
[398466995,1765690239067,-187.0,0.00016561,2]
[398466996,1765690239076,-2007.62455937,0.00016567,2]
[398466997,1765690239086,-202.401046,0.00016567,2]
[398466998,1765690239095,-202.401046,0.00016567,2]
[398466999,1765690239105,-168.05,0.00016567,2]
[398467000,1765690239114,-202.401046,0.00016567,2]
[398467001,1765690239123,-168.05,0.00016567,2]
[398467002,1765690239137,-202.401046,0.00016567,2]
[398467003,1765690239147,-168.05,0.00016567,2]
[398467004,1765690239156,-168.05,0.00016567,2]
[398467005,1765690239165,-153.531223,0.00016567,2]
[398467006,1765690239175,-151.0,0.00016567,2]
[398467007,1765690239185,-777.847606,0.00016567,2]
[398467008,1765690239195,-777.847606,0.00016567,2]
[398467009,1765690239206,-777.847606,0.00016567,2]
[398467010,1765690239216,-777.847606,0.00016567,2]
[398467011,1765690239227,-153.610923,0.00016567,2]
[398467012,1765690239238,-153.336729,0.00016567,2]
[398467013,1765690239248,-634.847075,0.00016567,2]
[398467014,1765690239258,-634.847075,0.00016567,2]
[398467015,1765690239267,-634.847075,0.00016567,2]
[398467016,1765690239278,-634.847075,0.00016567,2]
[398467017,1765690239288,-697.649458,0.00016567,2]
[398467018,1765690239299,-697.649458,0.00016567,2]
[398467019,1765690239311,-151.0,0.00016567,2]
[398467020,1765690239320,-697.649458,0.00016567,2]
[398467021,1765690239330,-697.649458,0.00016567,2]
[398467022,1765690239339,-151.0,0.00016567,2]
[398467023,1765690239349,-1325.03184,0.00016567,2]
[398467024,1765690239358,-1325.03184,0.00016567,2]
[398467025,1765690239369,-1325.03184,0.00016567,2]
[398467026,1765690239379,-1325.03184,0.00016567,2]
[398467027,1765690239388,-557.21129321,0.0001666,2]
[398467028,1765690239398,-153.138467,0.0001666,2]
[398467029,1765690239408,-154.908717,0.0001666,2]
[398467030,1765690239417,-153.212296,0.0001666,2]
[398467031,1765690239426,-151.0,0.0001666,2]
[398467032,1765690239436,-563.823395,0.0001666,2]
[398467033,1765690239445,-563.823395,0.0001666,2]
[398467034,1765690239455,-563.823395,0.0001666,2]
[398467035,1765690239464,-563.823395,0.0001666,2]
[398467036,1765690239474,-151.0,0.0001666,2]
[398467037,1765690239483,-222.514684,0.0001666,2]
[398467038,1765690239493,-552.890257,0.0001666,2]
[398467039,1765690239502,-552.890257,0.0001666,2]
[398467040,1765690239512,-209.06352,0.0001666,2]
[398467041,1765690239521,-552.890257,0.0001666,2]
[398467042,1765690239530,-552.890257,0.0001666,2]
[398467043,1765690239539,-151.0,0.0001666,2]
[398467044,1765690239548,-151.0,0.0001666,2]
[398467045,1765690239558,-151.0,0.0001666,2]
[398467046,1765690239568,-151.0,0.0001666,2]
[398467047,1765690239578,-151.0,0.0001666,2]
[398467048,1765690239589,-300.0,0.00016678,2]
[398467049,1765690239598,-542.43098461,0.00016697,2]
[398467050,1765690239608,-4011.7225135,0.00016698,2]
[398467051,1765690239617,-200.0,0.00016712,2]
[398467052,1765690239627,-150.0,0.00016712,2]
[398467053,1765690239637,-150.0,0.00016712,2]
[398467054,1765690239646,-150.0,0.00016712,2]
[398467055,1765690239656,-150.0,0.00016712,2]
[398467056,1765690239667,-150.0,0.00016712,2]
[398467057,1765690239682,-2124.0,0.00016712,2]
[398467058,1765690239691,-150.0,0.00016712,2]
[398467059,1765690239702,-150.0,0.00016712,2]
[398467060,1765690239713,-150.0,0.00016712,2]
[398467061,1765690239722,-500.0,0.00016712,2]
[398467062,1765690239733,-150.0,0.00016712,2]
[398467063,1765690239743,-150.0,0.00016712,2]
[398467064,1765690239754,-500.0,0.00016712,2]
[398467065,1765690239764,-200.0,0.00016712,2]
[398467066,1765690239774,-500.0,0.00016712,2]
[398467067,1765690239785,-500.0,0.00016712,2]
[398467068,1765690239794,-152.55217976,0.00016712,2]
[398467069,1765690239804,-2007.62455937,0.00016733,2]
[398467070,1765690239814,-187.0,0.00016734,2]
[398467071,1765690239826,-187.0,0.00016748,2]
[398467072,1765690239838,-473.49967,0.0001683,2]
[398467073,1765690239848,-187.0,0.00016847,2]
[398467074,1765690239858,-150.0,0.00016849,2]
[398467075,1765690239867,-150.0,0.00016849,2]
[398467076,1765690239877,-150.0,0.00016849,2]
[398467077,1765690239887,-2124.0,0.00016849,2]
[398467078,1765690239898,-150.0,0.00016849,2]
[398467080,1765690239908,-150.0,0.00016849,2]
[398467081,1765690239920,-150.0,0.00016849,2]
[398467082,1765690239930,-500.0,0.00016849,2]
[398467083,1765690239939,-500.0,0.00016849,2]
[398467084,1765690239949,-572.09932027,0.00016849,2]
[398467085,1765690239960,-500.0,0.00016849,2]
[398467086,1765690239972,-187.0,0.00016854,2]
[398467087,1765690239983,-200.0,0.00016864,2]
[398467088,1765690239993,-300.0,0.00016899,2]
[398467089,1765690240002,-666.0,0.00016899,2]
[398467090,1765690240013,-17719.56212582,0.000169,2]
[398467091,1765690240125,-1149.11159905,0.000169,2]
[398467092,1765690240138,-135.06657513,0.000169,2]
[398467093,1765690240147,-1000.0,0.000169,2]
[398467094,1765690240156,-166.61486382,0.000169,2]
[398467095,1765690240166,-2007.62455937,0.000169,2]
[398467096,1765690240177,-1683.0,0.000169,2]
[398467097,1765690240187,-699.970751,0.000169,2]
[398467098,1765690240196,-699.970751,0.000169,2]
[398467099,1765690240205,-699.970751,0.000169,2]
[398467100,1765690240215,-151.0,0.000169,2]
[398467101,1765690240224,-699.970751,0.000169,2]
[398467102,1765690240234,-151.0,0.000169,2]
[398467103,1765690240243,-543.65,0.00016913,2]
[398467104,1765690240257,-300.0,0.0001692,2]
[398467105,1765690240267,-666.0,0.0001692,2]
[398467106,1765690240277,-1000.0,0.00016921,2]
[398467107,1765690240287,-507.25603908,0.00016921,2]
[398467108,1765690240297,-113.11546073,0.00016921,2]
[398467109,1765690240313,-508.28615974,0.00016921,2]
[398467110,1765690240468,-378.59837953,0.00016921,2]
[398467111,1765690240478,-1000.0,0.00016921,2]
[398467112,1765690240488,-1000.0,0.00016921,2]
[398467113,1765690240500,-667.70412047,0.00016921,2]
[398467114,1765690240512,-1000.0,0.00016921,2]
[398467115,1765690240522,-1000.0,0.00016921,2]
[398467116,1765690240533,-1000.0,0.00016921,2]
[398467117,1765690240543,-1000.0,0.00016921,2]
[398467118,1765690240557,-920.44042702,0.00016921,2]
[398467119,1765690240568,-1000.0,0.00016921,2]
[398467120,1765690240579,-505.45045816,0.00016921,2]
[398467121,1765690240590,-500.0,0.00016921,2]
[398467122,1765690240602,-500.0,0.00016921,2]
[398467123,1765690240614,-634.847075,0.00016938,2]
[398467124,1765690240626,-634.847075,0.00016938,2]
[398467125,1765690240636,-634.847075,0.00016938,2]
[398467126,1765690240646,-634.847075,0.00016938,2]
[398467127,1765690240657,-697.649458,0.00016938,2]
[398467128,1765690240667,-697.649458,0.00016938,2]
[398467129,1765690240677,-151.0,0.00016938,2]
[398467130,1765690240687,-697.649458,0.00016938,2]
[398467131,1765690240698,-697.649458,0.00016938,2]
[398467132,1765690240707,-151.0,0.00016938,2]
[398467133,1765690240717,-1325.03184,0.00016938,2]
[398467134,1765690240726,-1325.03184,0.00016938,2]
[398467135,1765690240737,-1325.03184,0.00016938,2]
[398467136,1765690240746,-1325.03184,0.00016938,2]
[398467137,1765690240757,-4011.7225135,0.00016938,2]
[398467138,1765690240768,-187.0,0.0001694,2]
[398467139,1765690240778,-221.82794779,0.00016942,2]
[398467140,1765690240789,-473.49967,0.0001695,2]
[398467141,1765690240801,-481.15230225,0.00016953,2]
[398467142,1765690240810,-500.0,0.00016973,2]
[398467143,1765690240821,-500.0,0.00016973,2]
[398467144,1765690240830,-354.38503337,0.00016973,2]
[398467145,1765690240841,-500.0,0.00016973,2]
[398467146,1765690240852,-500.0,0.00016973,2]
[398467147,1765690240863,-262.5829293,0.00016973,2]
[398467148,1765690240873,-500.0,0.00016973,2]
[398467149,1765690240882,-3720.398629,0.0001698,2]
[398467150,1765690240891,-168.05,0.00016981,2]
[398467151,1765690240901,-168.05,0.00016981,2]
[398467152,1765690240911,-168.05,0.00016981,2]
[398467153,1765690240922,-168.05,0.00016981,2]
[398467154,1765690240936,-777.847606,0.00016981,2]
[398467155,1765690240945,-777.847606,0.00016981,2]
[398467156,1765690240955,-777.847606,0.00016981,2]
[398467157,1765690240964,-777.847606,0.00016981,2]
[398467158,1765690240975,-200.36231387,0.00016983,2]
[398467159,1765690240984,-250.0,0.00016986,2]
[398467160,1765690240994,-150.0,0.00016986,2]
[398467161,1765690241003,-150.0,0.00016986,2]
[398467162,1765690241012,-2124.0,0.00016986,2]
[398467163,1765690241022,-200.0,0.00016986,2]
[398467164,1765690241033,-150.0,0.00016986,2]
[398467165,1765690241042,-500.0,0.00016986,2]
[398467166,1765690241052,-500.0,0.00016986,2]
[398467167,1765690241632,-594.05868298,0.00016986,2]
[398467168,1765690241643,-176.7224125,0.00016989,2]
[398467169,1765690241654,-196.93257166,0.0001699,2]
[398467170,1765690241663,-300.0,0.00016998,2]
[398467171,1765690241672,-152.63,0.00016999,2]
[398467172,1765690241682,-21969.2060029,0.00016999,2]
[398467173,1765690241692,-500.0,0.00016999,2]
[398467174,1765690241701,-500.0,0.00016999,2]
[398467175,1765690241711,-500.0,0.00016999,2]
[398467176,1765690241721,-500.0,0.00016999,2]
[398467177,1765690241730,-500.0,0.00016999,2]
[398467178,1765690241739,-582.90773585,0.00016999,2]
[398467179,1765690241748,-500.0,0.00016999,2]
[398467180,1765690241758,-500.0,0.00016999,2]
[398467181,1765690241768,-510.59028781,0.00016999,2]
[398467182,1765690241777,-500.0,0.00016999,2]
[398467183,1765690241786,-500.0,0.00016999,2]
[398467184,1765690241795,-500.0,0.00016999,2]
[398467185,1765690241804,-500.0,0.00016999,2]
[398467186,1765690241813,-500.0,0.00016999,2]
[398467187,1765690241823,-500.0,0.00016999,2]
[398467188,1765690241834,-500.0,0.00016999,2]
[398467189,1765690241843,-300.0,0.00016999,2]
[398467190,1765690241854,-592.51,0.00016999,2]